fUSD/lending_fUSD_20240614
["ID","MTS","AMOUNT","RATE_DAILY","PERIOD"]
[329463534,1718380272624,-1197.821625,0.0002438,2]
[329463535,1718380272640,-17542.68129094,0.0002438,2]
[329463536,1718380272676,-177.01014402,0.0002438,2]
[329463537,1718380272691,-2336.78675648,0.0002438,2]
[329463538,1718380272707,-157.47616147,0.0002438,2]
[329463539,1718380272729,-229.00475518,0.0002438,2]
[329463540,1718380272755,-165.14466388,0.0002438,2]
[329463541,1718380272768,-155.0,0.0002438,2]
[329463542,1718380272794,-155.71614936,0.0002438,2]
[329463543,1718380272813,-500.0,0.0002438,3]
[329463544,1718380272832,-2695.40443441,0.00024381,2]
[329463545,1718380272846,-282.80779409,0.00024381,2]
[329463546,1718380273174,-600.23120163,0.00024381,2]
[329463547,1718380273185,-1821.87,0.00024381,3]
[329463548,1718380273196,-1111.05,0.00024381,3]
[329463549,1718380273207,-1348.81,0.00024381,3]
[329463550,1718380273220,-475.70883935,0.00024381,3]
[329463551,1718380273253,-93.03116065,0.00024381,3]
[329463552,1718380273292,-659.76680327,0.00024381,3]
[329463553,1718380273332,-456.76319673,0.00024381,3]
[329463554,1718380273364,-874.56680327,0.00024381,3]
[329463555,1718380273412,-902.09319673,0.00024381,3]
[329463556,1718380273424,-2858.24,0.00024381,3]
[329463557,1718380273436,-2236.56600327,0.00024381,3]
[329463558,1718380273452,-963.04399673,0.00024381,3]
[329463559,1718380273462,-2973.60280295,0.00024381,3]
[329463560,1718380273493,-7790.76719705,0.00024381,3]
[329463561,1718380273521,-1544.43,0.00024381,3]
[329463562,1718380273533,-2021.30280295,0.00024381,3]
[329463563,1718380273556,-313.49334845,0.00024381,3]
[329463564,1718380273571,-264.135,0.00024381,3]
[329463565,1718380273599,-200.0988486,0.00024381,3]
[329463566,1718380273610,-1807.0198514,0.00024381,3]
[329463567,1718380273652,-11806.0901486,0.00024381,3]
[329463568,1718380273662,-1277.71,0.00024381,3]
[329463569,1718380273675,-1057.55,0.00024381,3]
[329463570,1718380273688,-2265.45,0.00024381,3]
[329463571,1718380273700,-25101.04460535,0.00024382,2]
[329463572,1718380273712,-500.0,0.00024382,3]
[329463573,1718380273723,-500.0,0.00024382,3]
[329463574,1718380273733,-500.0,0.00024382,3]
[329463575,1718380273748,-500.0,0.00024382,3]
[329463576,1718380273761,-500.0,0.00024382,3]
[329463577,1718380273808,-1888.75605039,0.00024383,2]
[329463578,1718380273841,-158.01069394,0.00024383,3]
[329463579,1718380273858,-500.0,0.00024383,3]
[329463580,1718380273871,-500.0,0.00024383,3]
[329463581,1718380273909,-500.0,0.00024383,3]
[329463582,1718380273925,-500.0,0.00024383,3]
[329463583,1718380273943,-500.0,0.00024383,3]
[329463584,1718380273961,-500.0,0.00024383,3]
[329463585,1718380273975,-506.27996572,0.00024383,3]
[329463586,1718380273992,-530.73,0.00024383,3]
[329463587,1718380274038,-500.0,0.00024383,3]
[329463588,1718380274071,-500.0,0.00024383,3]
[329463589,1718380274114,-500.0,0.00024383,3]
[329463590,1718380274125,-500.0,0.00024383,3]
[329463591,1718380274142,-500.0,0.00024383,3]
[329463592,1718380274173,-500.0,0.00024383,3]
[329463593,1718380274196,-500.0,0.00024383,3]
[329463594,1718380274206,-500.0,0.00024383,3]
[329463595,1718380274219,-500.0,0.00024383,3]
[329463596,1718380274230,-511.6853373,0.00024383,3]
[329463597,1718380274241,-500.0,0.00024383,3]
[329463598,1718380274252,-500.0,0.00024383,3]
[329463599,1718380274272,-500.0,0.00024383,3]
[329463600,1718380274304,-500.0,0.00024383,3]
[329463601,1718380274314,-500.0,0.00024383,3]
[329463602,1718380274332,-313.75339914,0.00024383,3]
[329463603,1718380274353,-500.0,0.00024383,3]
[329463604,1718380274364,-500.0,0.00024383,3]
[329463605,1718380274376,-500.0,0.00024383,3]
[329463606,1718380274404,-500.0,0.00024383,3]
[329463607,1718380274414,-500.0,0.00024383,3]
[329463608,1718380274441,-598.69,0.00024383,3]
[329463609,1718380274452,-500.0,0.00024383,3]
[329463610,1718380274465,-500.0,0.00024383,3]
[329463611,1718380274480,-500.0,0.00024383,3]
[329463612,1718380274497,-500.0,0.00024383,3]
[329463613,1718380274534,-530.3,0.00024383,3]
[329463614,1718380274552,-555.65,0.00024383,3]
[329463615,1718380274568,-500.0,0.00024383,3]
[329463616,1718380274592,-500.0,0.00024383,3]
[329463617,1718380274635,-1049.04,0.00024383,3]
[329463618,1718380274656,-704.68,0.00024383,3]
[329463619,1718380274668,-298.04971824,0.00024383,3]
[329463620,1718380274688,-500.0,0.00024383,3]
[329463621,1718380274708,-500.0,0.00024383,3]
[329463622,1718380274728,-500.0,0.00024383,3]
[329463623,1718380274743,-607.06,0.00024383,3]
[329463624,1718380274762,-500.0,0.00024383,3]
[329463625,1718380274788,-500.0,0.00024383,3]
[329463626,1718380274800,-500.0,0.00024383,3]
[329463627,1718380274820,-500.0,0.00024383,3]
[329463628,1718380274852,-500.0,0.00024383,3]
[329463629,1718380274878,-541.13513898,0.00024383,3]
[329463630,1718380274905,-500.0,0.00024383,3]
[329463631,1718380274941,-500.0,0.00024383,3]
[329463632,1718380274960,-500.0,0.00024383,3]
[329463633,1718380274976,-508.48712909,0.00024383,3]
[329463634,1718380275024,-500.0,0.00024383,3]
[329463635,1718380275038,-582.65074561,0.00024383,3]
[329463636,1718380275054,-500.0,0.00024383,3]
[329463637,1718380275071,-500.0,0.00024383,3]
[329463638,1718380275096,-555.39495139,0.00024383,3]
[329463639,1718380275109,-500.0,0.00024383,3]
[329463640,1718380275121,-500.0,0.00024383,3]
[329463641,1718380275133,-500.0,0.00024383,3]
[329463642,1718380275217,-500.0,0.00024383,3]
[329463643,1718380275229,-500.0,0.00024383,3]
[329463644,1718380275249,-712.5,0.00024383,3]
[329463645,1718380275268,-500.0,0.00024383,3]
[329463646,1718380275281,-500.0,0.00024383,3]
[329463647,1718380275295,-548.84449782,0.00024383,3]
[329463648,1718380275310,-688.58,0.00024383,3]
[329463649,1718380275324,-500.0,0.00024383,3]
[329463650,1718380275344,-500.0,0.00024383,3]
[329463651,1718380275375,-623.2,0.00024383,3]
[329463652,1718380275424,-500.0,0.00024383,3]
[329463653,1718380275452,-500.0,0.00024383,3]
[329463654,1718380275470,-1045.71767232,0.00024383,3]
[329463655,1718380275485,-500.0,0.00024383,3]
[329463656,1718380275508,-500.0,0.00024383,3]
[329463657,1718380275520,-500.0,0.00024383,3]
[329463658,1718380275533,-500.0,0.00024383,3]
[329463659,1718380275544,-1015.56,0.00024383,3]
[329463660,1718380275573,-500.0,0.00024383,3]
[329463661,1718380275593,-165.81113109,0.00024383,3]
[329463662,1718380275609,-500.0,0.00024383,3]
[329463663,1718380275623,-500.0,0.00024383,3]
[329463664,1718380275635,-500.0,0.00024383,3]
[329463665,1718380275648,-500.0,0.00024383,3]
[329463666,1718380275664,-500.0,0.00024383,3]
[329463667,1718380275677,-783.24,0.00024383,3]
[329463668,1718380275689,-500.0,0.00024383,3]
[329463669,1718380275709,-520.82745985,0.00024383,3]
[329463670,1718380275776,-500.0,0.00024383,3]
[329463671,1718380275802,-500.0,0.00024383,3]
[329463672,1718380275814,-500.0,0.00024383,3]
[329463673,1718380275839,-587.83,0.00024383,3]
[329463674,1718380275850,-500.0,0.00024383,3]
[329463675,1718380275881,-500.0,0.00024383,3]
[329463676,1718380275895,-500.0,0.00024383,3]
[329463677,1718380275917,-500.0,0.00024383,3]
[329463678,1718380275930,-500.0,0.00024383,3]
[329463679,1718380275945,-500.0,0.00024383,3]
[329463680,1718380275982,-500.0,0.00024383,3]
[329463681,1718380275996,-500.0,0.00024383,3]
[329463682,1718380276020,-522.35995678,0.00024383,3]
[329463683,1718380276032,-500.0,0.00024383,3]
[329463684,1718380276050,-500.0,0.00024383,3]
[329463685,1718380276073,-500.0,0.00024383,3]
[329463686,1718380276098,-500.0,0.00024383,3]
[329463687,1718380276114,-500.0,0.00024383,3]
[329463688,1718380276137,-500.0,0.00024383,3]
[329463689,1718380276149,-500.0,0.00024383,3]
[329463690,1718380276163,-514.99,0.00024383,3]
[329463691,1718380276175,-500.0,0.00024383,3]
[329463692,1718380276202,-500.0,0.00024383,3]
[329463693,1718380276236,-587.37270269,0.00024383,3]
[329463694,1718380276249,-726.78,0.00024383,3]
[329463695,1718380276265,-500.0,0.00024383,3]
[329463696,1718380276282,-688.6,0.00024383,3]
[329463697,1718380276293,-500.0,0.00024383,3]
[329463698,1718380276344,-1077.95,0.00024383,3]
[329463699,1718380276356,-500.0,0.00024383,3]
[329463700,1718380276398,-568.84001337,0.00024383,3]
[329463701,1718380276410,-655.11,0.00024383,3]
[329463702,1718380276443,-500.0,0.00024383,3]
[329463703,1718380276461,-500.0,0.00024383,3]
[329463704,1718380276496,-643.44,0.00024383,3]
[329463705,1718380276508,-994.78,0.00024383,3]
[329463706,1718380276523,-500.0,0.00024383,3]
[329463707,1718380276547,-500.0,0.00024383,3]
[329463708,1718380276585,-237.95319675,0.00024383,3]
[329463709,1718380276608,-446.65629677,0.00024383,2]
[329463710,1718380276627,-536.53304591,0.00024383,3]
[329463711,1718380276649,-500.0,0.00024383,3]
[329463712,1718380276665,-500.0,0.00024383,3]
[329463713,1718380276683,-554.52289475,0.00024383,3]
[329463714,1718380276717,-500.0,0.00024383,3]
[329463715,1718380276748,-327.05478528,0.00024383,3]
[329463716,1718380276761,-587.91277345,0.00024383,3]
[329463717,1718380276781,-500.0,0.00024383,3]
[329463718,1718380276795,-500.0,0.00024383,3]
[329463719,1718380276823,-180.71371135,0.00024383,3]
[329463720,1718380276846,-500.0,0.00024383,3]
[329463721,1718380276862,-582.80849719,0.00024383,3]
[329463722,1718380276880,-500.0,0.00024383,3]
[329463723,1718380276896,-500.0,0.00024383,3]
[329463724,1718380276909,-500.0,0.00024383,3]
[329463725,1718380276922,-617.1476932,0.00024383,3]
[329463726,1718380276946,-544.99739026,0.00024383,3]
[329463727,1718380276957,-662.66,0.00024383,3]
[329463728,1718380276977,-500.0,0.00024383,3]
[329463729,1718380276992,-500.0,0.00024383,3]
[329463730,1718380277022,-500.0,0.00024383,3]
[329463731,1718380277038,-564.75014115,0.00024383,3]
[329463732,1718380277061,-500.0,0.00024383,3]
[329463733,1718380277097,-500.0,0.00024383,3]
[329463734,1718380277107,-1287.07,0.00024383,3]
[329463735,1718380277137,-536.65852269,0.00024383,3]
[329463736,1718380277159,-588.64,0.00024383,3]
[329463737,1718380277181,-500.0,0.00024383,3]
[329463738,1718380277197,-509.42,0.00024383,3]
[329463739,1718380277222,-500.0,0.00024383,3]
[329463740,1718380277245,-500.0,0.00024383,3]
[329463741,1718380277273,-500.0,0.00024383,3]
[329463742,1718380277288,-500.0,0.00024383,3]
[329463743,1718380277313,-500.0,0.00024383,3]
[329463744,1718380277356,-1473.94,0.00024383,3]
[329463745,1718380277371,-562.03,0.00024383,3]
[329463746,1718380277383,-609.53,0.00024383,3]
[329463747,1718380277401,-525.12,0.00024383,3]
[329463748,1718380277422,-308.48548242,0.00024383,3]
[329463749,1718380277458,-483.766688,0.00024383,3]
[329463750,1718380277495,-16.233312,0.00024383,3]
[329463751,1718380277552,-500.0,0.00024383,3]
[329463752,1718380277592,-2216.42,0.00024383,3]
[329463753,1718380277784,-500.0,0.00024383,3]
[329463754,1718380277798,-500.0,0.00024383,3]
[329463755,1718380277809,-500.0,0.00024383,3]
[329463756,1718380277819,-500.0,0.00024383,3]
[329463757,1718380277861,-500.0,0.00024383,3]
[329463758,1718380277878,-500.0,0.00024383,3]
[329463759,1718380277897,-810.92,0.00024383,3]
[329463760,1718380277911,-500.0,0.00024383,3]
[329463761,1718380277936,-980.82,0.00024383,3]
[329463762,1718380277985,-500.0,0.00024383,3]
[329463763,1718380278005,-500.0,0.00024383,3]
[329463764,1718380278019,-751.09,0.00024383,3]
[329463765,1718380278033,-500.0,0.00024383,3]
[329463766,1718380278045,-636.84,0.00024383,3]
[329463767,1718380278076,-360.33905149,0.00024383,3]
[329463768,1718380278099,-500.0,0.00024383,3]
[329463769,1718380278112,-500.0,0.00024383,3]
[329463770,1718380278131,-1232.3,0.00024383,3]
[329463771,1718380278155,-682.53,0.00024383,3]
[329463772,1718380278180,-500.0,0.00024383,3]
[329463773,1718380278191,-500.0,0.00024383,3]
[329463774,1718380278208,-626.94251191,0.00024383,3]
[329463775,1718380278236,-801.27,0.00024383,3]
[329463776,1718380278257,-561.8,0.00024383,3]
[329463777,1718380278272,-500.0,0.00024383,3]
[329463778,1718380278283,-500.0,0.00024383,3]
[329463779,1718380278297,-500.0,0.00024383,3]
[329463780,1718380278310,-500.0,0.00024383,3]
[329463781,1718380278321,-500.0,0.00024383,3]
[329463782,1718380278340,-500.0,0.00024383,3]
[329463783,1718380278362,-151.0,0.00024383,7]
[329463784,1718380278377,-689.41,0.00024383,3]
[329463785,1718380278387,-500.0,0.00024383,3]
[329463786,1718380278398,-500.0,0.00024383,3]
[329463787,1718380278409,-500.0,0.00024383,3]
[329463788,1718380278432,-500.0,0.00024383,3]
[329463789,1718380278444,-752.39,0.00024383,3]
[329463790,1718380278471,-500.0,0.00024383,3]
[329463791,1718380278484,-500.0,0.00024383,3]
[329463792,1718380278501,-500.0,0.00024383,3]
[329463793,1718380278517,-415.71792024,0.00024383,3]
[329463794,1718380278527,-1029.92,0.00024383,3]
[329463795,1718380278541,-500.0,0.00024383,3]
[329463796,1718380278553,-500.0,0.00024383,3]
[329463797,1718380278572,-500.0,0.00024383,3]
[329463798,1718380278588,-500.0,0.00024383,3]
[329463799,1718380278599,-856.65,0.00024383,3]
[329463800,1718380278614,-774.69,0.00024383,3]
[329463801,1718380278636,-500.0,0.00024383,3]
[329463802,1718380278650,-564.36,0.00024383,3]
[329463803,1718380278665,-500.0,0.00024383,3]
[329463804,1718380278685,-760.68,0.00024383,3]
[329463805,1718380278745,-500.0,0.00024383,3]
[329463806,1718380278756,-595.98,0.00024383,3]
[329463807,1718380278766,-666.69,0.00024383,3]
[329463808,1718380278777,-500.0,0.00024383,3]
[329463809,1718380278790,-500.0,0.00024383,3]
[329463810,1718380278802,-288.26568711,0.00024383,3]
[329463811,1718380278813,-500.0,0.00024383,3]
[329463812,1718380278833,-500.0,0.00024383,3]
[329463813,1718380278845,-866.36,0.00024383,3]
[329463814,1718380278859,-500.0,0.00024383,3]
[329463815,1718380278895,-500.0,0.00024383,3]
[329463816,1718380278908,-500.0,0.00024383,3]
[329463817,1718380278931,-875.2,0.00024383,3]
[329463818,1718380278942,-500.0,0.00024383,3]
[329463819,1718380278955,-500.0,0.00024383,3]
[329463820,1718380278968,-1147.97,0.00024383,3]
[329463821,1718380278979,-500.0,0.00024383,3]
[329463822,1718380278990,-744.36,0.00024383,3]
[329463823,1718380279013,-500.0,0.00024383,3]
[329463824,1718380279027,-500.0,0.00024383,3]
[329463825,1718380279039,-511.37,0.00024383,3]
[329463826,1718380279057,-591.89,0.00024383,3]
[329463827,1718380279087,-500.0,0.00024383,3]
[329463828,1718380279111,-500.0,0.00024383,3]
[329463829,1718380279126,-500.0,0.00024383,3]
[329463830,1718380279139,-380.80445387,0.00024383,3]
[329463831,1718380279150,-498.1996,0.00024383,3]
[329463832,1718380279163,-500.0,0.00024383,3]
[329463833,1718380279182,-500.0,0.00024383,3]
[329463834,1718380279217,-717.04,0.00024383,3]
[329463835,1718380279250,-594.57,0.00024383,3]
[329463836,1718380279273,-897.15,0.00024383,3]
[329463837,1718380279300,-1411.54,0.00024383,3]
[329463838,1718380279319,-531.73,0.00024383,3]
[329463839,1718380279340,-500.0,0.00024383,3]
[329463840,1718380279357,-500.0,0.00024383,3]
[329463841,1718380279371,-2228.81,0.00024383,3]
[329463842,1718380279385,-500.0,0.00024383,3]
[329463843,1718380279396,-500.0,0.00024383,3]
[329463844,1718380279407,-562.63,0.00024383,3]
[329463845,1718380279420,-458.95495447,0.00024383,3]
[329463846,1718380279431,-500.0,0.00024383,3]
[329463847,1718380279442,-498.87115372,0.00024383,3]
[329463848,1718380279469,-500.0,0.00024383,3]
[329463849,1718380279480,-150.0,0.00024383,3]
[329463850,1718380279498,-500.0,0.00024383,3]
[329463851,1718380279512,-923.23,0.00024383,3]
[329463852,1718380279526,-500.0,0.00024383,3]
[329463853,1718380279554,-500.0,0.00024383,3]
[329463854,1718380279568,-500.0,0.00024383,3]
[329463855,1718380279591,-853.49,0.00024383,3]
[329463856,1718380279641,-500.0,0.00024383,3]
[329463857,1718380279684,-500.0,0.00024383,3]
[329463858,1718380279711,-500.0,0.00024383,3]
[329463859,1718380279733,-500.0,0.00024383,3]
[329463860,1718380279767,-500.0,0.00024383,3]
[329463861,1718380279779,-1520.05,0.00024383,3]
[329463862,1718380279800,-1103.04,0.00024383,3]
[329463863,1718380279832,-539.89723518,0.00024383,3]
[329463864,1718380279871,-549.34,0.00024383,3]
[329463865,1718380279895,-500.0,0.00024383,3]
[329463866,1718380279928,-500.0,0.00024383,3]
[329463867,1718380279945,-500.0,0.00024383,3]
[329463868,1718380279970,-630.93321872,0.00024383,3]
[329463869,1718380279985,-500.0,0.00024383,3]
[329463870,1718380280000,-783.86,0.00024383,3]
[329463871,1718380280020,-862.17,0.00024383,3]
[329463872,1718380280042,-500.0,0.00024383,3]
[329463873,1718380280081,-500.0,0.00024383,3]
[329463874,1718380280095,-500.0,0.00024383,3]
[329463875,1718380280161,-761.25,0.00024383,3]
[329463876,1718380280172,-500.0,0.00024383,3]
[329463877,1718380280197,-500.0,0.00024383,3]
[329463878,1718380280209,-546.79,0.00024383,3]
[329463879,1718380280240,-264.86795627,0.00024383,3]
[329463880,1718380280259,-500.0,0.00024383,3]
[329463881,1718380280272,-988.01,0.00024383,3]
[329463882,1718380280294,-616.57384125,0.00024383,3]
[329463883,1718380280308,-500.0,0.00024383,3]
[329463884,1718380280337,-500.0,0.00024383,3]
[329463885,1718380280369,-697.78,0.00024383,3]
[329463886,1718380280381,-518.27,0.00024383,3]
[329463887,1718380280392,-500.0,0.00024383,3]
[329463888,1718380280409,-500.0,0.00024383,3]
[329463889,1718380280432,-500.0,0.00024383,3]
[329463890,1718380280456,-500.0,0.00024383,3]
[329463891,1718380280470,-566.29968192,0.00024383,3]
[329463892,1718380280519,-500.0,0.00024383,3]
[329463893,1718380280542,-500.0,0.00024383,3]
[329463894,1718380280555,-500.0,0.00024383,3]
[329463895,1718380280581,-500.0,0.00024383,3]
[329463896,1718380280598,-559.24,0.00024383,3]
[329463897,1718380280610,-638.39,0.00024383,7]
[329463898,1718380280628,-531.62,0.00024383,3]
[329463899,1718380280681,-500.0,0.00024383,3]
[329463900,1718380280695,-500.0,0.00024383,3]
[329463901,1718380280747,-500.0,0.00024383,3]
[329463902,1718380280763,-500.0,0.00024383,3]
[329463903,1718380280793,-500.0,0.00024383,3]
[329463904,1718380280840,-500.0,0.00024383,3]
[329463905,1718380280858,-500.0,0.00024383,3]
[329463906,1718380280879,-654.68,0.00024383,3]
[329463907,1718380280905,-500.0,0.00024383,3]
[329463908,1718380280936,-500.0,0.00024383,3]
[329463909,1718380280951,-820.74,0.00024383,3]
[329463910,1718380280973,-500.0,0.00024383,3]
[329463911,1718380280988,-500.0,0.00024383,3]
[329463912,1718380281001,-553.17,0.00024383,3]
[329463913,1718380281014,-500.0,0.00024383,3]
[329463914,1718380281042,-717.82,0.00024383,3]
[329463915,1718380281062,-500.0,0.00024383,3]
[329463916,1718380281096,-500.0,0.00024383,3]
[329463917,1718380281108,-210.65918087,0.00024383,3]
[329463918,1718380281129,-500.0,0.00024383,3]
[329463919,1718380281143,-500.0,0.00024383,3]
[329463920,1718380281159,-1176.5,0.00024383,3]
[329463921,1718380281217,-500.0,0.00024383,3]
[329463922,1718380281235,-1926.24,0.00024383,3]
[329463923,1718380281254,-672.6,0.00024383,3]
[329463924,1718380281269,-500.0,0.00024383,3]
[329463925,1718380281300,-642.98,0.00024383,3]
[329463926,1718380281315,-500.0,0.00024383,3]
[329463927,1718380281355,-500.0,0.00024383,3]
[329463928,1718380281376,-500.0,0.00024383,3]
[329463929,1718380281409,-745.6,0.00024383,3]
[329463930,1718380281428,-500.0,0.00024383,3]
[329463931,1718380281441,-500.0,0.00024383,3]
[329463932,1718380281459,-881.83,0.00024383,3]
[329463933,1718380281482,-500.0,0.00024383,3]
[329463934,1718380281512,-510.04,0.00024383,3]
[329463935,1718380281526,-694.53,0.00024383,3]
[329463936,1718380281551,-500.0,0.00024383,3]
[329463937,1718380281566,-500.0,0.00024383,3]
[329463938,1718380281585,-500.0,0.00024383,3]
[329463939,1718380281608,-1271.89,0.00024383,3]
[329463940,1718380281626,-500.0,0.00024383,3]
[329463941,1718380281635,-1851.12,0.00024383,3]
[329463942,1718380281646,-500.0,0.00024383,3]
[329463943,1718380281657,-500.0,0.00024383,3]
[329463944,1718380281669,-554.41,0.00024383,3]
[329463945,1718380281682,-500.0,0.00024383,3]
[329463946,1718380281693,-500.0,0.00024383,3]
[329463947,1718380281710,-500.0,0.00024383,3]
[329463948,1718380281722,-1734.61,0.00024383,3]
[329463949,1718380281735,-500.0,0.00024383,3]
[329463950,1718380281747,-3300.26,0.00024383,3]
[329463951,1718380281758,-500.0,0.00024383,3]
[329463952,1718380281774,-1429.38,0.00024383,3]
[329463953,1718380281786,-500.0,0.00024383,3]
[329463954,1718380281799,-500.0,0.00024383,3]
[329463955,1718380281813,-613.36828796,0.00024383,3]
[329463956,1718380281824,-908.52,0.00024383,3]
[329463957,1718380281841,-500.0,0.00024383,3]
[329463958,1718380281853,-500.0,0.00024383,3]
[329463959,1718380281865,-500.0,0.00024383,3]
[329463960,1718380281879,-1804.53,0.00024383,3]
[329463961,1718380281907,-648.65,0.00024383,3]
[329463962,1718380281918,-820.37,0.00024383,3]
[329463963,1718380281930,-1274.24,0.00024383,3]
[329463964,1718380281951,-5752.37,0.00024383,3]
[329463965,1718380281996,-711.06,0.00024383,3]
[329463966,1718380282010,-500.0,0.00024383,3]
[329463967,1718380282034,-896.29,0.00024383,3]
[329463968,1718380282045,-500.0,0.00024383,3]
[329463969,1718380282060,-838.4,0.00024383,3]
[329463970,1718380282074,-1103.64,0.00024383,3]
[329463971,1718380282091,-576.72,0.00024383,3]
[329463972,1718380282110,-500.0,0.00024383,3]
[329463973,1718380282121,-500.0,0.00024383,3]
[329463974,1718380282143,-704.45,0.00024383,3]
[329463975,1718380282157,-613.01,0.00024383,3]
[329463976,1718380282175,-694.56,0.00024383,3]
[329463977,1718380282190,-1967.5,0.00024383,3]
[329463978,1718380282201,-500.0,0.00024383,3]
[329463979,1718380282219,-500.0,0.00024383,3]
[329463980,1718380282234,-500.0,0.00024383,3]
[329463981,1718380282254,-540.75922874,0.00024383,3]
[329463982,1718380282265,-689.48,0.00024383,3]
[329463983,1718380282276,-915.07,0.00024383,3]
[329463984,1718380282296,-500.0,0.00024383,3]
[329463985,1718380282316,-500.0,0.00024383,3]
[329463986,1718380282327,-500.0,0.00024383,3]
[329463987,1718380282343,-613.14,0.00024383,3]
[329463988,1718380282358,-701.43,0.00024383,3]
[329463989,1718380282435,-500.0,0.00024383,3]
[329463990,1718380282518,-1091.74,0.00024383,3]
[329463991,1718380282592,-343.58440101,0.00024383,3]
[329463992,1718380282632,-500.0,0.00024383,3]
[329463993,1718380282662,-1527.0,0.00024383,3]
[329463994,1718380282715,-562.02,0.00024383,3]
[329463995,1718380282748,-500.0,0.00024383,3]
[329463996,1718380282762,-500.0,0.00024383,3]
[329463997,1718380282779,-2895.95,0.00024383,3]
[329463998,1718380282794,-500.0,0.00024383,3]
[329463999,1718380282821,-500.0,0.00024383,3]
[329464000,1718380282845,-229.48189607,0.00024383,3]
[329464001,1718380282860,-844.9,0.00024383,3]
[329464002,1718380282878,-500.0,0.00024383,3]
[329464003,1718380282893,-535.33,0.00024383,3]
[329464004,1718380282912,-500.0,0.00024383,3]
[329464005,1718380282932,-500.0,0.00024383,3]
[329464006,1718380282951,-783.57,0.00024383,3]
[329464007,1718380282969,-1194.07,0.00024383,3]
[329464008,1718380282983,-1548.88,0.00024383,3]
[329464009,1718380283017,-500.0,0.00024383,3]
[329464010,1718380283039,-500.0,0.00024383,3]
[329464011,1718380283056,-500.0,0.00024383,3]
[329464012,1718380283072,-1621.33,0.00024383,3]
[329464013,1718380283099,-462.34110301,0.00024383,3]
[329464014,1718380283111,-500.0,0.00024383,3]
[329464015,1718380283132,-500.0,0.00024383,3]
[329464016,1718380283147,-500.2,0.00024383,3]
[329464017,1718380283164,-1324.34,0.00024383,3]
[329464018,1718380283176,-3768.55,0.00024383,3]
[329464019,1718380283187,-500.0,0.00024383,3]
[329464020,1718380283211,-500.0,0.00024383,3]
[329464021,1718380283237,-614.75,0.00024383,3]
[329464022,1718380283263,-500.0,0.00024383,3]
[329464023,1718380283275,-607.96,0.00024383,3]
[329464024,1718380283286,-500.0,0.00024383,3]
[329464025,1718380283336,-1233.94,0.00024383,3]
[329464026,1718380283371,-500.0,0.00024383,3]
[329464027,1718380283390,-868.16,0.00024383,3]
[329464028,1718380283403,-500.0,0.00024383,3]
[329464029,1718380283423,-500.0,0.00024383,3]
[329464030,1718380283460,-500.0,0.00024383,3]
[329464031,1718380283471,-500.0,0.00024383,3]
[329464032,1718380283482,-3190.36,0.00024383,3]
[329464033,1718380283493,-151.0,0.00024383,7]